[Event "Slovakian ECo-C Extraliga 2024-25"]
[Site "Slovakia"]
[Date "2025.01.18"]
[Round "3.6"]
[White "Benci, Jozef"]
[Black "Vojtek, Vladimir"]
[Result "0-1"]
[Annotator "TA"]
[ECO "A05"]
[WhiteElo "1954"]
[BlackElo "2259"]
[PlyCount "98"]
[EventDate "2024.09.12"]
[EventType "team-tourn"]
[EventCountry "SVK"]
[SourceTitle "playchess.com"]
[Source "ChessBase"]
[SourceQuality "1"]
[TimeControl "5400+30"]

{[%evp 19,98,40,43,44,54,6,26,26,42,39,34,30,41,42,41,7,12,16,20,17,27,29,33,34,26,0,12,13,52,13,13,20,18,21,20,-22,0,-16,-14,-21,-13,-11,0,-9,0,-37,-25,-22,-30,-30,-42,-69,-42,-89,-63,-83,-53,-108,-100,-108,-74,-159,-155,-191,-169,-179,-137,-139,-132,-183,-183,-261,-263,-643,-632,-681,-666,-780,-596,-741,-733]} 1. Nf3 {[%emt 0:00:12]} Nf6 {[%emt 0:00:20]} 2. c4 {[%emt 0:00:25]} b6 {[%emt 0:00:56]} 3. g3 {[%emt 0:01:20]} Bb7 {[%emt 0:00:17]} 4. Bg2 {[%emt 0:00:17]} e6 {[%emt 0:04:19]} 5. O-O {[%emt 0:03:28]} Be7 {[%emt 0:00:05]} 6. b3 {[%emt 0:04:22]} O-O {[%emt 0:00:38]} 7. Bb2 {[%emt 0:00:29]} d5 {[%emt 0:04:47]} 8. e3 {[%emt 0:01:35]} Nbd7 {[%emt 0:01:57][%cal Bb8d7,Bd7c5,Bc5e4][%mdl 32]} 9. Nc3 {[%emt 0:04:25]} Nc5 {[%emt 0:05:55]} 10. d4 {[%emt 0:05:14]} Nce4 {[%emt 0:00:23]} 11. Nxe4 {[%emt 0:04:45]} Nxe4 {[%emt 0:00:21]} 12. Nd2 {[%emt 0:02:25]} (12. Ne5 $14) 12... Nf6 {[%emt 0:15:57]} 13. Rc1 {[%emt 0:01:01]} Re8 {[%emt 0:01:10]} 14. Qe2 {[%emt 0:07:10]} a5 {[%emt 0:03:27]} 15. a4 {[%emt 0:08:01]} Bb4 {[%emt 0:06:15]} 16. Rfd1 {[%emt 0:07:20]} Qe7 {[%emt 0:03:15]} 17. Qd3 {[%emt 0:07:27]} Rac8 {[%emt 0:12:43]} 18. Bc3 {[%emt 0:05:03]} Bxc3 {[%emt 0:08:19]} 19. Qxc3 {[%emt 0:00:18]} c5 {[%emt 0:00:27]} 20. dxc5 {[%emt 0:02:22]} Qxc5 {[%emt 0:05:12]} 21. Qb2 {[%emt 0:03:42]} Qb4 {[%emt 0:01:39]} 22. Qc3 {[%emt 0:01:57]} Qe7 {[%emt 0:03:23]} 23. Qd4 {[%emt 0:04:37]} Rc5 {[%emt 0:07:00]} 24. Qb2 {[%emt 0:02:45]} Rec8 {[%emt 0:02:35]} 25. cxd5 {[%emt 0:01:29]} Bxd5 {[%emt 0:00:32]} 26. e4 {[%emt 0:03:34] Hoping for Rxc5.} Bb7 {[%emt 0:00:31]} 27. Re1 {[%emt 0:03:38]} h6 {[%emt 0:01:46]} 28. Nc4 {[%emt 0:03:36][%cal Oe4e5]} Qc7 {[%emt 0:02:02]} 29. Rcd1 {[%emt 0:04:37]} Ba6 {[%emt 0:01:50]} 30. Bf1 {[%emt 0:01:30]} Rd8 {[%emt 0:02:30]} 31. Qb1 {[%emt 0:01:42]} Bxc4 {[%emt 0:01:07]} 32. bxc4 {[%emt 0:01:21]} e5 {[%emt 0:01:31]} 33. Rxd8+ {[%emt 0:02:42]} Qxd8 {[%emt 0:00:01]} 34. Rd1 {[%emt 0:00:47]} Qc7 {[%emt 0:00:03]} 35. Bd3 {[%emt 0:01:20]} g6 {[%emt 0:00:48]} 36. Qc2 {[%emt 0:00:18]} (36. Kg2 $15) 36... Kg7 {[%emt 0:00:28] White is weak on the dark squares} 37. Rb1 {[%emt 0:00:32]} Qd6 {[%emt 0:00:31]} 38. Rb5 {[%emt 0:00:35]} (38. Kg2 $15) 38... Nd7 $17 {[%emt 0:00:36][%cal Bf6d7,Bd7c5,Bc5e6,Be6d4][%mdl 32] Black is more active.} 39. Rb1 {[%emt 0:00:31]} Rc7 {[%emt 0:01:31]} 40. Bf1 {[%emt 0:00:55]} ({White should play} 40. Be2) 40... Nc5 {[%emt 0:00:41]} 41. Rb5 {[%emt 0:00:00]} Rc6 {[%emt 0:00:00]} 42. Rb1 {[%emt 0:00:00]} Ne6 {[%emt 0:00:00]} 43. Qb2 {[%emt 0:00:00]} Nd4 {[%emt 0:00:00]} 44. Qc3 {[%emt 0:00:00]} (44. f4 $17 {was worth a try.}) 44... Qc5 $19 {[%emt 0:00:00]} 45. h4 {[%emt 0:00:00]} (45. Kg2 $142) 45... Rf6 {[%emt 0:00:00] And now ...Rf3 would win.} 46. Rb2 $2 {[%emt 0:00:00]} (46. Kg2) 46... Rf3 {[%emt 0:00:00]} 47. Qc1 {[%emt 0:00:00] [#]} Rxg3+ $3 {[%emt 0:00:00][%mdl 512]} 48. Bg2 {[%emt 0:00:00]} (48. Kh2 Rg4) 48... Rb3 {[%emt 0:00:00]} 49. Ra2 {[%emt 0:00:00] Wards off Qa3} Qb4 {[%emt 0:00:00]} 0-1

[Event "Slovakian ECo-C Extraliga 2024-25"]
[Site "Slovakia"]
[Date "2025.01.18"]
[Round "3.7"]
[White "Borhy, Marcell"]
[Black "Farkas, Gabor"]
[Result "1-0"]
[Annotator "TA"]
[ECO "D44"]
[WhiteElo "2348"]
[BlackElo "2323"]
[PlyCount "95"]
[EventDate "2024.09.12"]
[EventType "team-tourn"]
[EventCountry "SVK"]
[SourceTitle "playchess.com"]
[Source "ChessBase"]
[SourceQuality "1"]
[TimeControl "5400+30"]

{[%evp 30,95,77,77,168,166,177,175,179,177,173,183,147,153,273,256,711,658,652,660,754,572,562,536,496,437,465,427,413,352,374,375,517,445,475,450,990,992,928,390,1341,1310,1341,1324,1275,1105,1000,589,1235,1291,1145,1116,1185,1181,1191,1189,1041,869,29943,4731,29977,29985,29986,29987,29988,29989,29989,29990]} 1. Nf3 {[%emt 0:11:48]} d5 {[%emt 0:00:02]} 2. d4 {[%emt 0:00:03]} Nf6 {[%emt 0:37:19]} 3. c4 {[%emt 0:00:04]} c6 {[%emt 0:00:05]} 4. Nc3 {[%emt 0:00:03]} e6 {[%emt 0:00:03]} 5. Bg5 {[%emt 0:00:03]} dxc4 {[%emt 0:00:04]} 6. e4 {[%emt 0:00:03][%cal Be2e4,Be4e5][%mdl 32]} b5 {[%emt 0:00:04]} 7. e5 {[%emt 0:00:03]} h6 {[%emt 0:00:03]} 8. Bh4 {[%emt 0:00:04]} g5 {[%emt 0:00:04]} 9. Nxg5 {[%emt 0:00:05]} hxg5 {[%emt 0:00:05]} 10. Bxg5 {[%emt 0:00:01]} Nbd7 {[%emt 0:00:10]} 11. exf6 {[%emt 0:00:08]} Bb7 {[%emt 0:00:04]} 12. g3 {[%emt 0:00:03]} Qb6 {[%emt 0:00:05]} 13. Bg2 {[%emt 0:00:03]} O-O-O {[%emt 0:00:06]} 14. O-O {[%emt 0:00:04]} Bh6 {[%emt 0:00:04]} 15. Bxh6 {[%emt 0:00:03]} Rxh6 {[%emt 0:00:02]} 16. Ne4 {[%emt 0:00:02]} Nxf6 {[%emt 0:00:06] D44: Semi-Slav: Botvinnik System.} (16... c5 $16) 17. Nc5 $1 $18 {[%emt 0:00:07]} e5 {[%emt 0:00:05]} 18. Qc1 {[%emt 0:00:04]} Rh5 {[%emt 0:00:10] White is clearly better.} 19. Nxb7 {[%emt 0:00:07]} (19. dxe5 $6 Qxc5 20. exf6 b4 $16) 19... Rxd4 {[%emt 0:00:08] [#]} 20. a4 $1 {[%emt 0:00:04][%cal Oa4b5]} Kxb7 {[%emt 0:00:07]} 21. axb5 {[%emt 0:00:04]} Qxb5 {[%emt 0:00:03][%csl Oa7,Oc4,Oc6] [#] Black has weak pawns} (21... e4 $16) 22. b3 $1 {[%emt 0:00:03]} Nd5 $146 {[%emt 0:00:03]} (22... Qxb3 $2 {too greedy.} 23. Rb1 $18) (22... cxb3 $2 23. Bxc6+ Qxc6 24. Rxa7+ Kxa7 25. Qxc6 $18) (22... Qc5 23. bxc4 e4) (22... c3 23. Qxc3 Nd5 24. Qf3 Rh7 25. Qf5 Rg7 26. Qxe5 Rgg4 27. Qf5 Nc7 28. Qxf7 a6 29. Rfc1 Rd6 30. Bf1 {1-0 Palma,M (2106)-Kalyva,K (1779) Wch U16 Girls 2018 (10.22)}) 23. bxc4 {[%emt 0:00:04]} Rxc4 {[%emt 0:00:10]} 24. Qa3 {[%emt 0:00:03]} a5 {[%emt 0:00:04]} 25. Qf3 {[%emt 0:00:05]} ({Less strong is} 25. Qxa5 Qxa5 26. Rxa5 Nc3 $18) 25... Rh6 {[%emt 0:00:07]} 26. Qxf7+ {[%emt 0:00:05]} Nc7 {[%emt 0:00:07]} 27. Rfe1 {[%emt 0:00:06]} Rb4 {[%emt 0:00:06]} 28. h4 {[%emt 0:00:07][%cal Bh2h4,Bh4h5,Bh5h6][%mdl 32]} Rd6 {[%emt 0:00:39]} 29. Qf5 {[%emt 0:00:28]} Re6 {[%emt 0:00:07]} 30. Be4 {[%emt 0:00:22]} Rd6 {[%emt 0:00:05]} 31. h5 {[%emt 0:00:04]} Qc5 {[%emt 0:00:05]} 32. Rac1 {[%emt 0:00:08]} Rc4 {[%emt 0:00:03]} (32... Qd4 $142 33. Qf8 Ne6 34. Qe7+ Nc7) 33. Rxc4 {[%emt 0:00:03]} Qxc4 {[%emt 0:00:02]} 34. Qf8 {[%emt 0:00:11]} (34. Qxe5 $142 Qd4 35. Rb1+ (35. Qxa5 Rd7 $18) 35... Ka6 36. Qf5) 34... Rd4 {[%emt 0:00:07]} (34... Qb4 35. Kf1 (35. Rb1 $2 Rd1+ 36. Kg2 Rxb1 $19) 35... Rd4) 35. Bf5 {[%emt 0:00:06]} Nb5 {[%emt 0:00:05]} 36. h6 {[%emt 0:00:04][%cal Oh6h7]} Qb4 {[%emt 0:00:05]} 37. Qg7+ {[%emt 0:00:05]} Kb6 {[%emt 0:00:05]} 38. Qxe5 {[%emt 0:00:09] Strongly threatening Qb8+.} Rd5 {[%emt 0:00:04]} 39. Qb8+ {[%emt 0:00:09]} Kc5 {[%emt 0:00:06]} 40. Rc1+ {[%emt 0:00:05]} Nc3 {[%emt 0:00:07]} 41. Qh8 {[%emt 0:00:04]} Rxf5 {[%emt 0:00:12]} 42. Qxc3+ {[%emt 0:00:03]} Qxc3 {[%emt 0:00:00]} 43. Rxc3+ {[%emt 0:00:00] KR-KR. White is a pawn up.} Kd5 {[%emt 0:00:00]} 44. g4 {[%emt 0:00:00][%cal Bg3g4,Bg4g5,Bg5g6,Bg6g7][%mdl 32]} Rf8 {[%emt 0:00:00]} 45. g5 {[%emt 0:00:00] White mates.} Rh8 {[%emt 0:00:00]} 46. Rg3 {[%emt 0:00:00]} a4 {[%emt 0:00:00][%cal Ba5a4,Ba4a3][%mdl 32]} 47. g6 {[%emt 0:00:00]} a3 {[%emt 0:00:02]} 48. g7 {[%emt 0:00:00] White took control after the opening.   Weighted Error Value: White=0.36/Black=1.11  Mistake:       	---       	Black=3      Inaccurate:     	---       	Black=1      OK:         	White=5     	Black=5      Best:        	White=1     	Black=2      Strong:       	White=3     	---} 1-0

[Event "Slovakian ECo-C Extraliga 2024-25"]
[Site "Slovakia"]
[Date "2025.01.18"]
[Round "3.7"]
[White "Pacher, Milan"]
[Black "Molnar, Erno"]
[Result "1/2-1/2"]
[Annotator "TA"]
[ECO "C54"]
[WhiteElo "2317"]
[BlackElo "2220"]
[PlyCount "72"]
[EventDate "2024.09.12"]
[EventType "team-tourn"]
[EventCountry "SVK"]
[SourceTitle "playchess.com"]
[Source "ChessBase"]
[SourceQuality "1"]
[TimeControl "5400+30"]

{[%evp 9,72,15,19,17,35,15,14,15,38,8,35,2,47,40,36,28,36,28,24,27,39,34,30,38,44,47,42,20,41,56,42,43,72,47,48,57,41,39,52,50,59,54,52,52,55,14,16,27,16,0,0,0,0,0,0,0,0,0,0,0,0,0,0,0,0]} 1. e4 {[%emt 0:00:04]} e5 {[%emt 0:00:04]} 2. Nf3 {[%emt 0:00:04]} Nc6 {[%emt 0:00:05]} 3. Bc4 {[%emt 0:00:05]} Bc5 {[%emt 0:00:09]} 4. c3 {[%emt 0:00:06]} Nf6 {[%emt 0:00:09]} 5. d3 {[%emt 0:00:11]} a6 {[%emt 0:03:18]} 6. a4 {[%emt 0:01:21]} Ba7 {[%emt 0:01:38]} 7. Bg5 {[%emt 0:01:09]} d6 {[%emt 0:07:01]} 8. Nbd2 {[%emt 0:00:06]} h6 {[%emt 0:15:41]} 9. Bh4 {[%emt 0:00:03]} Qe7 {[%emt 0:02:46]} 10. b4 {[%emt 0:01:10]} Be6 {[%emt 0:18:36]} 11. O-O {[%emt 0:01:39]} Bxc4 {[%emt 0:06:08]} 12. Nxc4 {[%emt 0:00:05]} Qe6 {[%emt 0:01:57]} 13. Bxf6 {[%emt 0:07:21]} Qxf6 {[%emt 0:01:10]} 14. b5 {[%emt 0:00:06]} Ne7 {[%emt 0:06:28]} 15. Rb1 {[%emt 0:01:47]} O-O {[%emt 0:03:17]} 16. a5 {[%emt 0:03:28]} axb5 {[%emt 0:20:26]} 17. Rxb5 {[%emt 0:00:07]} Rfb8 {[%emt 0:00:13]} 18. Qb3 {[%emt 0:03:36]} b6 {[%emt 0:00:39]} 19. axb6 {[%emt 0:00:25]} Bxb6 {[%emt 0:00:10]} 20. Nxb6 {[%emt 0:00:07]} cxb6 {[%emt 0:00:06]} 21. Rxb6 {[%emt 0:01:08]} Rxb6 {[%emt 0:00:06]} 22. Qxb6 {[%emt 0:00:07]} Ng6 {[%emt 0:00:48][%cal Be7g6,Bg6f8,Bf8e6,Be6d4][%mdl 32]} 23. Qe3 {[%emt 0:05:06]} Ra2 {[%emt 0:01:50]} 24. g3 {[%emt 0:00:56] Repels Nf4} Rc2 {[%emt 0:00:39]} 25. c4 {[%emt 0:01:17]} Nf8 {[%emt 0:00:42]} 26. Nh4 {[%emt 0:01:44]} Ne6 {[%emt 0:00:26]} 27. Nf5 {[%emt 0:01:04][%cal Of1b1]} Nd4 $1 {[%emt 0:00:52]} 28. Nxd4 {[%emt 0:04:04]} exd4 $11 {[%emt 0:00:12][%mdl 4096] Endgame. KQR-KQR} 29. Qe1 {[%emt 0:00:13] The position is equal.} (29. Qf4 {simplifies} Qxf4 30. gxf4 f5 31. Re1) 29... Qf3 {[%emt 0:01:30]} 30. Qd1 {[%emt 0:00:58]} Re2 {[%emt 0:00:52]} 31. Qb1 {[%emt 0:14:11]} Kh7 {[%emt 0:00:48]} 32. Qb5 {[%emt 0:03:13]} Qxd3 {[%emt 0:04:19]} 33. Qf5+ {[%emt 0:00:08]} Kg8 {[%emt 0:00:13]} 34. Qc8+ {[%emt 0:00:05]} Kh7 {[%emt 0:00:04]} 35. Qf5+ {[%emt 0:00:04]} Kg8 {[%emt 0:00:05][%cal Og7g6]} (35... Kh8 $5) 36. Qc8+ {[%emt 0:00:03]} Kh7 {[%emt 0:00:12] Weighted Error Value: White=0.07 (flawless) /Black=0.06 (flawless) .  Inaccurate:     	White=2     	Black=3      OK:         	White=16    	Black=13     Best:        	White=1     	Black=4      Strong:       	---       	Black=1} 1/2-1/2

[Event "Slovakian ECo-C Extraliga 2024-25"]
[Site "Slovakia"]
[Date "2025.01.18"]
[Round "3.7"]
[White "Zpevak, Pavel"]
[Black "Sklars, Tomas"]
[Result "1/2-1/2"]
[Annotator "TA"]
[ECO "D02"]
[WhiteElo "2277"]
[BlackElo "1917"]
[PlyCount "51"]
[EventDate "2024.09.12"]
[EventType "team-tourn"]
[EventCountry "SVK"]
[SourceTitle "playchess.com"]
[Source "ChessBase"]
[SourceQuality "1"]
[TimeControl "5400+30"]

{[%evp 10,51,0,0,0,2,23,19,23,-7,14,8,33,21,94,15,15,13,29,22,33,24,29,-7,-6,-8,0,0,0,-4,0,0,0,0,12,6,22,0,0,0,16,0,0,0]} 1. d4 {[%emt 0:00:16]} d5 {[%emt 0:00:11]} 2. Nf3 {[%emt 0:00:18]} Nf6 {[%emt 0:00:10]} 3. c4 {[%emt 0:00:06]} c6 {[%emt 0:00:05]} 4. Qc2 {[%emt 0:00:10]} g6 {[%emt 0:02:16]} 5. cxd5 {[%emt 0:00:44]} cxd5 {[%emt 0:00:42]} 6. Nc3 {[%emt 0:00:24]} Nc6 {[%emt 0:01:05]} 7. Bf4 {[%emt 0:00:13]} a6 {[%emt 0:01:18]} 8. e3 {[%emt 0:08:47]} Bf5 {[%emt 0:04:30]} 9. Qd2 {[%emt 0:04:16]} e6 {[%emt 0:08:58]} 10. Ne5 {[%emt 0:12:32]} Nxe5 {[%emt 0:11:56]} 11. Bxe5 {[%emt 0:00:56]} Bd6 {[%emt 0:02:05]} (11... h5 $11 {remains equal.}) 12. Bxd6 {[%emt 0:12:20]} (12. f3 $16) 12... Qxd6 $11 {[%emt 0:00:28]} 13. Be2 {[%emt 0:00:17]} Rc8 {[%emt 0:16:30]} 14. O-O {[%emt 0:04:18]} h5 {[%emt 0:01:46]} 15. Rac1 {[%emt 0:03:39][%cal Oc3b5] [#] Black must now prevent Nb5!} Ng4 {[%emt 0:05:00][%csl Gg4][%cal Rd6h2]} 16. f4 {[%emt 0:08:35]} O-O {[%emt 0:08:13] The position is equal.} 17. Na4 {[%emt 0:02:19][%cal Bc3a4,Ba4b6,Bb6c8][%mdl 32]} Qe7 {[%emt 0:01:17]} 18. Bf3 {[%emt 0:11:08]} Nf6 {[%emt 0:05:53]} 19. a3 {[%emt 0:02:44]} Kg7 {[%emt 0:09:22]} 20. Nb6 {[%emt 0:10:35]} Rc7 {[%emt 0:02:53]} 21. Qb4 {[%emt 0:04:06]} Re8 {[%emt 0:05:10]} 22. Qxe7 {[%emt 0:04:55]} Rexe7 {[%emt 0:00:02]} 23. Nc8 {[%emt 0:01:59]} Red7 {[%emt 0:01:17]} 24. Nb6 {[%emt 0:00:15]} Re7 {[%emt 0:00:44]} 25. Nc8 {[%emt 0:01:53]} Red7 {[%emt 0:00:10]} 26. Nb6 {[%emt 0:00:32] Weighted Error Value: White=0.13 (very precise) /Black=0.14 (very precise) .  Mistake:       	White=1     	Black=1      Inaccurate:     	White=2     	---        OK:         	White=9     	Black=8} 1/2-1/2

[Event "Slovakian ECo-C Extraliga 2024-25"]
[Site "Slovakia"]
[Date "2025.01.18"]
[Round "3.7"]
[White "Cajka, Tibor"]
[Black "Castiglione, Mario"]
[Result "1/2-1/2"]
[Annotator "TA"]
[ECO "A46"]
[WhiteElo "2210"]
[BlackElo "2229"]
[PlyCount "68"]
[EventDate "2024.09.12"]
[EventType "team-tourn"]
[EventCountry "SVK"]
[SourceTitle "playchess.com"]
[Source "ChessBase"]
[SourceQuality "1"]
[TimeControl "5400+30"]

{[%evp 9,68,-69,-64,-68,-69,-83,-69,-60,-61,-102,-28,-37,-38,-27,0,4,77,23,17,22,27,24,45,-68,-55,-56,-54,-49,-42,-42,-48,-50,-52,-56,-45,-47,-8,-17,0,0,-6,0,60,60,59,62,64,-28,-20,-70,-58,-68,-60,-116,0,0,0,0,0,0,0]} 1. Nf3 {[%emt 0:00:05]} Nf6 {[%emt 0:00:26]} 2. g3 {[%emt 0:00:16]} c5 {[%emt 0:00:46]} 3. d4 {[%emt 0:00:19]} cxd4 {[%emt 0:00:19]} 4. Bg2 {[%emt 0:00:19]} Qa5+ {[%emt 0:02:40]} 5. Qd2 {[%emt 0:15:00]} Qxd2+ {[%emt 0:00:42]} 6. Bxd2 $146 {[%emt 0:01:06] A46: 1 d4 Nf6 2 Nf3 e6: Torre, London and Colle Systems.} (6. Nbxd2 Nc6 7. Nc4 d6 8. O-O e5 9. e3 Be6 10. Na3 dxe3 11. Bxe3 Be7 12. Ng5 {½-½ Ojanen,P (2230)-Yrjola,J (2455) FIN-chT Finland 1988}) 6... Nc6 {[%emt 0:01:35]} 7. Na3 {[%emt 0:00:25][%cal Bb1a3,Ba3b5,Bb5c7,Bc7d5][%mdl 32]} e5 {[%emt 0:06:31]} 8. Nb5 {[%emt 0:06:13] Black is slightly better.} Rb8 {[%emt 0:02:33]} 9. c4 {[%emt 0:02:58]} a6 {[%emt 0:07:32]} (9... dxc3 $17 10. bxc3 Bc5) 10. Nc7+ $11 {[%emt 0:02:23]} Kd8 {[%emt 0:00:49]} 11. Nd5 {[%emt 0:00:44]} h6 {[%emt 0:20:22]} 12. e3 {[%emt 0:10:12]} b5 {[%emt 0:19:30] [#]} (12... dxe3 $11 13. Bxe3 b5) 13. Nxe5 $1 {[%emt 0:16:07] White is more active.} Nxe5 {[%emt 0:01:28]} 14. Ba5+ {[%emt 0:04:48]} Ke8 {[%emt 0:01:40]} 15. Bc7 {[%emt 0:00:21][%cal Oc7e5]} Nxd5 {[%emt 0:04:17]} 16. Bxb8 {[%emt 0:13:26]} (16. Bxd5 $14 Bb4+ 17. Kf1) 16... Bb4+ {[%emt 0:04:53]} (16... bxc4 $2 17. Bxe5 (17. Bxd5 Nc6 $16) 17... Nb4 18. Bxd4 $18 (18. exd4 d6 $16)) 17. Ke2 {[%emt 0:00:45]} d3+ {[%emt 0:00:25]} (17... Nxc4 18. Bxd5 Nxb2 19. exd4 $16) (17... bxc4 18. Bxe5 d3+ 19. Kd1 $16) 18. Kf1 {[%emt 0:00:25]} Nc6 {[%emt 0:05:10]} (18... bxc4 $6 19. Bxe5 Bb7 20. a3 $16 (20. Bxg7 Rg8 $16)) 19. Bxd5 {[%emt 0:01:17][%cal Oa2a3]} Nxb8 {[%emt 0:00:21]} 20. cxb5 {[%emt 0:00:13]} axb5 {[%emt 0:00:23]} 21. Kg2 {[%emt 0:00:22]} Nc6 {[%emt 0:04:32]} 22. Rhd1 {[%emt 0:01:47]} Be7 {[%emt 0:01:04]} 23. Rxd3 {[%emt 0:05:59]} Nb4 {[%emt 0:07:12]} 24. Rc3 {[%emt 0:00:25]} Ba6 {[%emt 0:01:01]} 25. Be4 {[%emt 0:02:38]} Bf6 {[%emt 0:01:37]} ({Black should play} 25... Nc6 $11) 26. Rc7 $1 $14 {[%emt 0:05:20][%mdl 1024] White has compensation.} Kd8 {[%emt 0:02:20]} (26... Bxb2 $2 27. Rb1 Kd8 28. Ra7 $18 (28. Rxb2 Kxc7 29. Rxb4 Kd6 $14)) 27. Ra7 {[%emt 0:00:50] Hoping for a3.} Re8 $1 {[%emt 0:00:15]} (27... Bxb2 $2 28. Rb1 Bc3 (28... Re8 $2 29. Ra8+ Bc8 30. Bb7 $18) 29. a3 $18 (29. Rxb4 Bxb4 30. Rxa6 Ke7 $16)) 28. f3 {[%emt 0:02:17]} (28. Bf3 $1 $14 Bc8 (28... Bxb2 $2 29. Rb1 $18) 29. Rd1) 28... Bc8 $36 {[%emt 0:05:38][%cal Oe8e6][%mdl 2048] Black has some pressure.} (28... Bxb2 $2 29. Rb1 Bc3 30. a3 $18) 29. Rd1 {[%emt 0:03:25]} (29. Ra5 $11) 29... Re6 $15 {[%emt 0:00:00][%cal Ob4c6]} 30. Ra5 {[%emt 0:02:02]} Rb6 {[%emt 0:00:00]} 31. b3 {[%emt 0:00:57]} ({Better is} 31. Rd2 $15) 31... Kc7 {[%emt 0:00:00]} (31... Ba6 $17 {Strongly threatening ...Nc6.} 32. a4 Bc3) 32. Ra7+ $11 {[%emt 0:00:53] The position is equal.} Kb8 {[%emt 0:00:00]} 33. Ra8+ {[%emt 0:00:04]} Kc7 {[%emt 0:00:00]} 34. Ra7+ {[%emt 0:00:25]} Kb8 {[%emt 0:00:00] Weighted Error Value: White=0.15 (very precise) /Black=0.23 (precise)   Mistake:       	White=5     	Black=4      Inaccurate:     	White=1     	Black=2      OK:         	White=11    	Black=8      Best:        	White=7     	Black=4      Strong:       	White=1     	Black=1} 1/2-1/2

[Event "Slovakian ECo-C Extraliga 2024-25"]
[Site "Slovakia"]
[Date "2025.01.18"]
[Round "3.7"]
[White "Lisko, Frantisek"]
[Black "Hros, Roman"]
[Result "0-1"]
[Annotator "TA"]
[ECO "C41"]
[WhiteElo "2150"]
[BlackElo "2230"]
[PlyCount "74"]
[EventDate "2024.09.12"]
[EventType "team-tourn"]
[EventCountry "SVK"]
[SourceTitle "playchess.com"]
[Source "ChessBase"]
[SourceQuality "1"]
[TimeControl "5400+30"]

{[%evp 15,74,29,27,25,27,30,34,0,0,-7,11,0,1,0,0,-2,0,-23,-22,-39,-12,-25,-21,-33,-27,-24,-32,-45,-29,-52,-41,-144,-137,-141,-141,-199,-155,-193,-193,-248,-186,-241,-195,-279,-172,-480,-481,-567,-362,-676,-684,-704,-708,-1039,-833,-1720,-1655,-1544,-1479,-2315,-1861]} 1. d4 {[%emt 0:00:03]} d6 {[%emt 0:00:20]} 2. e4 {[%emt 0:00:13]} Nf6 {[%emt 0:00:03]} 3. Nc3 {[%emt 0:00:47]} e5 {[%emt 0:00:18]} 4. Nf3 {[%emt 0:00:45]} Nbd7 {[%emt 0:00:08]} 5. Bc4 {[%emt 0:00:35]} Be7 {[%emt 0:00:15]} 6. O-O {[%emt 0:00:28]} O-O {[%emt 0:00:08]} 7. a4 {[%emt 0:00:33]} c6 {[%emt 0:02:39]} 8. a5 {[%emt 0:02:55]} Rb8 {[%emt 0:00:12]} 9. h3 {[%emt 0:01:57]} b5 {[%emt 0:00:14]} 10. axb6 {[%emt 0:01:20]} axb6 {[%emt 0:00:16]} 11. Re1 {[%emt 0:04:35]} b5 {[%emt 0:23:45]} 12. Bf1 {[%emt 0:00:20]} h6 {[%emt 0:02:33]} 13. b3 {[%emt 0:06:24]} Bb7 {[%emt 0:06:52]} 14. Ba3 {[%emt 0:15:52]} Ra8 {[%emt 0:15:34][%cal Ob5b4]} 15. Bb2 {[%emt 0:15:04]} Qc7 {[%emt 0:12:26]} 16. g3 {[%emt 0:07:43]} Rxa1 {[%emt 0:04:08]} 17. Bxa1 {[%emt 0:00:29]} Re8 {[%emt 0:01:09]} 18. Bg2 {[%emt 0:12:34]} Bf8 {[%emt 0:03:41]} 19. dxe5 {[%emt 0:14:48]} dxe5 {[%emt 0:00:17]} 20. Bb2 {[%emt 0:01:15]} Nc5 {[%emt 0:02:22]} 21. Nh2 {[%emt 0:03:43]} Rd8 {[%emt 0:04:09]} 22. Qc1 {[%emt 0:00:53]} Ne6 {[%emt 0:00:23]} 23. Ng4 {[%emt 0:01:13]} (23. Nf3 $15) 23... Nxg4 $17 {[%emt 0:01:47]} 24. hxg4 {[%emt 0:00:07]} Bb4 {[%emt 0:01:43]} 25. Re3 {[%emt 0:01:43]} (25. Rd1 $17) 25... Nd4 {[%emt 0:01:04]} 26. Bf1 {[%emt 0:03:03]} Bc8 {[%emt 0:01:37]} 27. Nb1 {[%emt 0:03:58]} (27. Kg2 {was worth a try.}) 27... Bc5 {[%emt 0:00:05]} 28. Rc3 {[%emt 0:00:28]} (28. g5 $142) 28... Qb6 {[%emt 0:01:51]} (28... Bb4 29. Rd3 $17) 29. g5 {[%emt 0:00:15]} (29. Rd3 $142) 29... hxg5 {[%emt 0:00:21] aiming for ...Bg4.} 30. Qxg5 $2 {[%emt 0:00:13]} (30. Rd3 {was the crucial defense.}) 30... Ne6 $19 {[%emt 0:00:09][%csl LRf2,LRg5]} 31. Qxe5 {[%emt 0:00:40]} Rd1 {[%emt 0:05:12]} 32. Rf3 $2 {[%emt 0:00:51]} (32. Rxc5 Qxc5 33. Qxc5 Nxc5 34. Nc3) 32... Rxb1 {[%emt 0:01:54]} 33. Qf5 {[%emt 0:00:39]} Qb7 {[%emt 0:03:13]} ({Inferior is} 33... Rxb2 34. Qxf7+ Kh8 35. Qe8+ Nf8 (35... Kh7 $2 36. Bd3 $18) 36. Qxc8 $14) 34. Bc3 {[%emt 0:00:29]} b4 {[%emt 0:01:41]} 35. Be5 {[%emt 0:00:34]} Nd4 {[%emt 0:00:59]} 36. Qh5 {[%emt 0:00:30]} Nxf3+ {[%emt 0:00:31]} 37. Qxf3 {[%emt 0:00:01]} Qa6 {[%emt 0:01:16]} 0-1